[Event "28th Bosnjaci Open 2024"]
[Site "Bosnjaci"]
[Date "2024.01.05"]
[Round "4.5"]
[White "Zaja, Ivan"]
[Black "Alimpic, Aleksa"]
[Result "1-0"]
[ECO "D10"]
[WhiteElo "2419"]
[BlackElo "2282"]
[Annotator "RC"]
[PlyCount "41"]
[EventDate "2024.01.02"]
[EventType "swiss"]
[EventCountry "CRO"]
[SourceTitle "playchess.com"]
[Source "ChessBase"]
[SourceQuality "1"]
[TimeControl "5400+30"]

1. d4 {[%emt 0:00:03]} d5 {[%emt 0:00:07]} 2. c4 {[%emt 0:00:05]} dxc4 {[%emt 0:00:08]} 3. e4 {[%emt 0:00:09]} b5 {[%emt 0:00:33]} 4. a4 {[%emt 0:00:50]} c6 {[%emt 0:00:10]} 5. Nc3 {[%emt 0:19:24]} b4 {[%emt 0:00:23]} 6. Na2 {[%emt 0:00:05]} Nf6 {[%emt 0:00:26]} 7. e5 {[%emt 0:00:11]} Nd5 {[%emt 0:00:06]} 8. Bxc4 {[%emt 0:00:03]} e6 {[%emt 0:00:08]} 9. Nf3 {[%emt 0:00:58]} Be7 {[%emt 0:00:08]} 10. h4 {[%emt 0:02:29]} Nd7 {[%emt 0:06:29]} 11. Bg5 {[%emt 0:01:13]} a5 {[%emt 0:02:26]} 12. Nc1 {[%emt 0:03:44]} N5b6 {[%emt 0:00:42]} 13. Bd3 {[%emt 0:04:50]} c5 {[%emt 0:03:10]} 14. Be4 {[%emt 0:07:26]} Rb8 {[%emt 0:02:27]} 15. Nb3 {[%emt 0:02:21]} Bxg5 {[%emt 0:33:05]} 16. hxg5 {[%emt 0:01:25]} Qc7 {[%emt 0:02:03]} 17. dxc5 {[%emt 0:01:16]} Nc4 {[%emt 0:01:21]} 18. Qd4 {[%emt 0:04:34]} Ba6 {[%emt 0:06:00]} 19. g6 {[%emt 0:01:30]} h6 {[%emt 0:05:24]} 20. gxf7+ {[%emt 0:00:56]} Kxf7 {[%emt 0:00:10]} 21. Bd3 {[%emt 0:01:04]} 1-0

[Event "28th Bosnjaci Open 2024"]
[Site "Bosnjaci"]
[Date "2024.01.05"]
[Round "4.6"]
[White "Zufic, Miroslav"]
[Black "Starcevic, Ante Leon"]
[Result "1/2-1/2"]
[ECO "A11"]
[WhiteElo "2354"]
[BlackElo "2209"]
[Annotator "RC"]
[PlyCount "42"]
[EventDate "2024.01.02"]
[EventType "swiss"]
[EventCountry "CRO"]
[SourceTitle "playchess.com"]
[Source "ChessBase"]
[SourceQuality "1"]
[TimeControl "5400+30"]

1. Nf3 {[%emt 0:00:04]} Nf6 {[%emt 0:03:08]} 2. g3 {[%emt 0:00:07]} g6 {[%emt 0:00:14]} 3. b3 {[%emt 0:00:07]} Bg7 {[%emt 0:00:14]} 4. Bb2 {[%emt 0:00:05]} d5 {[%emt 0:00:14]} 5. c4 {[%emt 0:00:16]} c6 {[%emt 0:00:14]} 6. Bg2 {[%emt 0:00:24]} O-O {[%emt 0:00:06]} 7. O-O {[%emt 0:00:34]} b6 {[%emt 0:00:27]} 8. d3 {[%emt 0:08:57]} Bb7 {[%emt 0:00:13]} 9. cxd5 {[%emt 0:03:11]} cxd5 {[%emt 0:00:09]} 10. Nbd2 {[%emt 0:03:09]} Nc6 {[%emt 0:01:00]} 11. Ne5 {[%emt 0:02:44]} Nxe5 {[%emt 0:00:18]} 12. Bxe5 {[%emt 0:00:06]} Rc8 {[%emt 0:00:07]} 13. Nf3 {[%emt 0:04:46]} Qd7 {[%emt 0:06:34]} 14. Qd2 {[%emt 0:06:40]} Ne8 {[%emt 0:02:27]} 15. Bxg7 {[%emt 0:01:30]} Nxg7 {[%emt 0:00:12]} 16. d4 {[%emt 0:12:36]} Rc7 {[%emt 0:02:57]} 17. Ne5 {[%emt 0:15:40]} Qd6 {[%emt 0:04:23]} 18. Rfc1 {[%emt 0:04:11]} Rfc8 {[%emt 0:00:54]} 19. Bh3 {[%emt 0:01:00]} e6 {[%emt 0:00:54]} 20. Qf4 {[%emt 0:05:13]} Ne8 {[%emt 0:02:40]} 21. Qe3 {[%emt 0:07:51]} Ba6 {[%emt 0:01:41]} 1/2-1/2

[Event "28th Bosnjaci Open 2024"]
[Site "Bosnjaci"]
[Date "2024.01.05"]
[Round "4.7"]
[White "Caric, Mato"]
[Black "Culum, Sanjin"]
[Result "0-1"]
[ECO "B90"]
[WhiteElo "2061"]
[BlackElo "2349"]
[Annotator "RC"]
[PlyCount "68"]
[EventDate "2024.01.02"]
[EventType "swiss"]
[EventCountry "CRO"]
[SourceTitle "playchess.com"]
[Source "ChessBase"]
[SourceQuality "1"]
[TimeControl "5400+30"]

1. e4 {[%emt 0:00:04]} c5 {[%emt 0:00:48]} 2. Nf3 {[%emt 0:00:07]} d6 {[%emt 0:00:04]} 3. d4 {[%emt 0:00:05]} cxd4 {[%emt 0:00:04]} 4. Nxd4 {[%emt 0:00:06]} Nf6 {[%emt 0:00:05]} 5. Nc3 {[%emt 0:00:05]} a6 {[%emt 0:00:06]} 6. f3 {[%emt 0:00:09]} e5 {[%emt 0:01:54]} 7. Nb3 {[%emt 0:00:10]} Be7 {[%emt 0:00:33]} 8. Be3 {[%emt 0:00:08]} Be6 {[%emt 0:00:06]} 9. Qd2 {[%emt 0:00:05]} h5 {[%emt 0:00:52]} 10. O-O-O {[%emt 0:00:22]} Nbd7 {[%emt 0:00:35]} 11. Qf2 {[%emt 0:08:36]} Rc8 {[%emt 0:02:31]} 12. h3 {[%emt 0:02:22]} b5 {[%emt 0:07:48]} 13. Bd3 {[%emt 0:01:10]} h4 {[%emt 0:00:10]} 14. f4 {[%emt 0:10:13]} Qc7 {[%emt 0:17:37]} 15. f5 {[%emt 0:05:06]} Bc4 {[%emt 0:01:15]} 16. Kb1 {[%emt 0:00:20]} b4 {[%emt 0:05:08]} 17. Ne2 {[%emt 0:22:27]} a5 {[%emt 0:02:57]} 18. Rc1 {[%emt 0:03:58]} a4 {[%emt 0:07:34]} 19. Nd2 {[%emt 0:00:21]} d5 {[%emt 0:00:03]} 20. exd5 {[%emt 0:08:52]} Bxd5 {[%emt 0:00:14]} 21. b3 {[%emt 0:00:10]} Ra8 {[%emt 0:08:02]} 22. Bb5 {[%emt 0:06:46]} Bc6 {[%emt 0:01:34]} 23. Bxc6 {[%emt 0:07:01]} Qxc6 {[%emt 0:00:06]} 24. Nc4 {[%emt 0:01:56]} Qa6 {[%emt 0:01:36]} 25. a3 {[%emt 0:00:11]} bxa3 {[%emt 0:01:40]} 26. Nc3 {[%emt 0:00:59]} a2+ {[%emt 0:07:49]} 27. Ka1 {[%emt 0:02:43]} axb3 {[%emt 0:00:57]} 28. cxb3 {[%emt 0:00:07]} Qb7 {[%emt 0:01:38]} 29. Qc2 {[%emt 0:00:37]} O-O {[%emt 0:03:28]} 30. Rhd1 {[%emt 0:03:04]} Nc5 {[%emt 0:00:00]} 31. Bxc5 {[%emt 0:01:20]} Bxc5 {[%emt 0:00:00]} 32. Nxa2 {[%emt 0:00:13]} Bd4+ {[%emt 0:01:51]} 33. Kb1 {[%emt 0:00:52]} Nd5 {[%emt 0:01:43]} 34. Re1 {[%emt 0:02:47]} Nb4 {[%emt 0:01:02]} 0-1

[Event "28th Bosnjaci Open 2024"]
[Site "Bosnjaci"]
[Date "2024.01.05"]
[Round "4.8"]
[White "Biti, Ozren"]
[Black "Sipic, Hrvoje"]
[Result "1/2-1/2"]
[ECO "B23"]
[WhiteElo "2308"]
[BlackElo "2185"]
[Annotator "RC"]
[PlyCount "83"]
[EventDate "2024.01.02"]
[EventType "swiss"]
[EventCountry "CRO"]
[SourceTitle "playchess.com"]
[Source "ChessBase"]
[SourceQuality "1"]
[TimeControl "5400+30"]

1. e4 {[%emt 0:00:05]} c5 {[%emt 0:00:12]} 2. Nc3 {[%emt 0:00:10]} Nc6 {[%emt 0:00:36]} 3. Bb5 {[%emt 0:00:26]} Nd4 {[%emt 0:00:23]} 4. Bc4 {[%emt 0:00:12]} e6 {[%emt 0:01:35]} 5. Nge2 {[%emt 0:01:06]} a6 {[%emt 0:00:55]} 6. Nxd4 {[%emt 0:00:33]} cxd4 {[%emt 0:00:10]} 7. Ne2 {[%emt 0:00:06]} Bc5 {[%emt 0:00:36]} 8. d3 {[%emt 0:02:09]} b5 {[%emt 0:01:58]} 9. Bb3 {[%emt 0:00:49]} Bb7 {[%emt 0:00:10]} 10. O-O {[%emt 0:01:28]} Ne7 {[%emt 0:02:38]} 11. Ng3 {[%emt 0:03:34]} O-O {[%emt 0:07:12]} 12. Qh5 {[%emt 0:02:59]} Rc8 {[%emt 0:09:55]} 13. Bd2 {[%emt 0:09:18]} Qe8 {[%emt 0:11:40]} 14. Qh3 {[%emt 0:09:37]} Kh8 {[%emt 0:05:58]} 15. Rae1 {[%emt 0:04:54]} f5 {[%emt 0:10:13]} 16. f3 {[%emt 0:18:04]} Qg6 {[%emt 0:11:07]} 17. a4 {[%emt 0:06:23]} b4 {[%emt 0:12:27]} 18. Nh5 {[%emt 0:08:29]} a5 {[%emt 0:08:22]} 19. Bf4 {[%emt 0:03:36]} Rf7 {[%emt 0:02:56]} 20. Bg3 {[%emt 0:10:16]} Qh6 {[%emt 0:01:39]} 21. Be5 {[%emt 0:04:33]} Kg8 {[%emt 0:04:20]} 22. Nf4 {[%emt 0:05:55]} Qxh3 {[%emt 0:00:40]} 23. Nxh3 {[%emt 0:00:50]} Ng6 {[%emt 0:01:48]} 24. exf5 {[%emt 0:01:15]} Rxf5 {[%emt 0:00:20]} 25. Bg3 {[%emt 0:00:18]} Bd5 {[%emt 0:00:27]} 26. Nf2 {[%emt 0:01:07]} Bxb3 {[%emt 0:00:40]} 27. cxb3 {[%emt 0:00:02]} Nf4 {[%emt 0:01:39]} 28. Bxf4 {[%emt 0:00:48]} Rxf4 {[%emt 0:00:06]} 29. Rc1 {[%emt 0:00:28]} Rff8 {[%emt 0:00:19]} 30. Rc2 {[%emt 0:01:38]} Bb6 {[%emt 0:02:54]} 31. Rfc1 {[%emt 0:00:19]} Rxc2 {[%emt 0:00:32]} 32. Rxc2 {[%emt 0:00:02]} Kf7 {[%emt 0:00:34]} 33. Ng4 {[%emt 0:01:16]} Ke7 {[%emt 0:00:57]} 34. Rc4 {[%emt 0:01:19]} Rf5 {[%emt 0:00:27]} 35. Kf1 {[%emt 0:00:35]} Rc5 {[%emt 0:00:30]} 36. Rxc5 {[%emt 0:01:49]} Bxc5 {[%emt 0:00:05]} 37. Ke2 {[%emt 0:00:18]} Bd6 {[%emt 0:00:43]} 38. g3 {[%emt 0:01:45]} Bc7 {[%emt 0:00:56]} 39. Nf2 {[%emt 0:00:36]} d5 {[%emt 0:00:18]} 40. f4 {[%emt 0:00:42]} h5 {[%emt 0:00:34]} 41. Kf3 {[%emt 0:00:22]} Kf6 {[%emt 0:00:19]} 42. h3 {[%emt 0:00:39]} 1/2-1/2

[Event "28th Bosnjaci Open 2024"]
[Site "Bosnjaci"]
[Date "2024.01.05"]
[Round "4.9"]
[White "Zovko, Mario"]
[Black "Saric, Kristina"]
[Result "1-0"]
[ECO "B22"]
[WhiteElo "2268"]
[BlackElo "2111"]
[Annotator "RC"]
[PlyCount "91"]
[EventDate "2024.01.02"]
[EventType "swiss"]
[EventCountry "CRO"]
[SourceTitle "playchess.com"]
[Source "ChessBase"]
[SourceQuality "1"]
[TimeControl "5400+30"]

1. e4 {[%emt 0:08:41]} c5 {[%emt 0:00:07]} 2. c3 {[%emt 0:00:15]} Nf6 {[%emt 0:00:16]} 3. e5 {[%emt 0:00:06]} Nd5 {[%emt 0:00:02]} 4. d4 {[%emt 0:00:06]} cxd4 {[%emt 0:00:18]} 5. cxd4 {[%emt 0:00:23]} e6 {[%emt 0:00:28]} 6. Nf3 {[%emt 0:00:07]} d6 {[%emt 0:00:29]} 7. a3 {[%emt 0:00:10]} Be7 {[%emt 0:00:33]} 8. Bd3 {[%emt 0:00:05]} b6 {[%emt 0:03:18]} 9. O-O {[%emt 0:03:17]} O-O {[%emt 0:01:08]} 10. Qe2 {[%emt 0:00:05]} dxe5 {[%emt 0:02:42]} 11. dxe5 {[%emt 0:00:07]} Nd7 {[%emt 0:01:44]} 12. Qe4 {[%emt 0:07:46]} g6 {[%emt 0:01:04]} 13. Bc4 {[%emt 0:06:55]} Bb7 {[%emt 0:08:28]} 14. Bh6 {[%emt 0:03:39]} Re8 {[%emt 0:00:40]} 15. Nbd2 {[%emt 0:00:17]} Rc8 {[%emt 0:06:11]} 16. Qg4 {[%emt 0:10:45]} a6 {[%emt 0:07:41]} 17. Rad1 {[%emt 0:06:23]} Qc7 {[%emt 0:01:50]} 18. Rfe1 {[%emt 0:01:29]} b5 {[%emt 0:04:58]} 19. Bb3 {[%emt 0:05:54]} a5 {[%emt 0:12:02]} 20. h4 {[%emt 0:07:17]} a4 {[%emt 0:01:30]} 21. Ba2 {[%emt 0:00:14]} Kh8 {[%emt 0:20:27]} 22. Ng5 {[%emt 0:11:45]} Bxg5 {[%emt 0:05:42]} 23. Qxg5 {[%emt 0:01:18]} Qd8 {[%emt 0:01:29]} 24. Qg3 {[%emt 0:00:57]} Ne7 {[%emt 0:02:30]} 25. Bg5 {[%emt 0:06:00]} Qc7 {[%emt 0:01:26]} 26. Bb1 {[%emt 0:03:13]} Nf5 {[%emt 0:02:06]} 27. Qf4 {[%emt 0:03:20]} Kg8 {[%emt 0:06:01]} 28. Be4 {[%emt 0:05:11]} f6 {[%emt 0:03:59]} 29. exf6 {[%emt 0:00:51]} Qxf4 {[%emt 0:00:21]} 30. Bxf4 {[%emt 0:00:11]} Bd5 {[%emt 0:01:36]} 31. g4 {[%emt 0:04:21]} Nd4 {[%emt 0:00:13]} 32. g5 {[%emt 0:00:34]} Nc5 {[%emt 0:01:09]} 33. Bxd5 {[%emt 0:00:48]} exd5 {[%emt 0:00:01]} 34. Rxe8+ {[%emt 0:00:06]} Rxe8 {[%emt 0:00:04]} 35. Be3 {[%emt 0:00:16]} Ne2+ {[%emt 0:00:58]} 36. Kf1 {[%emt 0:00:38]} Ng3+ {[%emt 0:01:19]} 37. Kg2 {[%emt 0:00:10]} d4 {[%emt 0:01:57]} 38. Bxd4 {[%emt 0:01:47]} Ne6 {[%emt 0:00:03]} 39. Kxg3 {[%emt 0:01:01]} Nxd4 {[%emt 0:00:05]} 40. Nf3 {[%emt 0:01:02]} Nf5+ {[%emt 0:00:25]} 41. Kf4 {[%emt 0:01:12]} Re2 {[%emt 0:00:28]} 42. Rd8+ {[%emt 0:00:41]} Kf7 {[%emt 0:00:04]} 43. Ne5+ {[%emt 0:00:18]} Ke6 {[%emt 0:00:27]} 44. Re8+ {[%emt 0:00:19]} Kd5 {[%emt 0:00:45]} 45. f7 {[%emt 0:00:53]} Nd6 {[%emt 0:00:35]} 46. f8=Q {[%emt 0:01:07]} 1-0

[Event "28th Bosnjaci Open 2024"]
[Site "Bosnjaci"]
[Date "2024.01.05"]
[Round "4.10"]
[White "Pavic, Filip"]
[Black "Tukovic, Dario"]
[Result "1-0"]
[ECO "C77"]
[WhiteElo "2261"]
[BlackElo "2132"]
[Annotator "ChessBase"]
[PlyCount "65"]
[EventDate "2024.01.02"]
[EventType "swiss"]
[EventCountry "CRO"]
[SourceTitle "playchess.com"]
[Source "ChessBase"]
[SourceQuality "1"]
[TimeControl "5400+30"]

1. e4 {[%emt 0:00:04]} e5 {[%emt 0:00:18]} 2. Nf3 {[%emt 0:00:25]} Nc6 {[%emt 0:00:16]} 3. Bb5 {[%emt 0:00:00]} a6 {[%emt 0:00:29]} 4. Ba4 {[%emt 0:00:05]} Nf6 {[%emt 0:00:08]} 5. Nc3 {[%emt 0:01:00]} Bb4 {[%emt 0:01:51]} 6. Nd5 {[%emt 0:19:57]} Ba5 {[%emt 0:29:41]} 7. O-O {[%emt 0:07:56]} O-O {[%emt 0:06:18]} 8. d3 {[%emt 0:08:04]} Nxd5 {[%emt 0:20:02]} 9. exd5 {[%emt 0:00:54]} Ne7 {[%emt 0:00:07]} 10. Nxe5 {[%emt 0:01:41]} Nxd5 {[%emt 0:00:11]} 11. Bb3 {[%emt 0:09:33]} Nf6 {[%emt 0:01:15]} 12. Bg5 {[%emt 0:08:09]} Bb4 {[%emt 0:04:02]} 13. Qf3 {[%emt 0:06:18]} Be7 {[%emt 0:00:36]} 14. Rae1 {[%emt 0:03:37]} h6 {[%emt 0:21:33]} 15. Bxf6 {[%emt 0:03:08]} Bxf6 {[%emt 0:00:19]} 16. Nxf7 {[%emt 0:00:19]} Rxf7 {[%emt 0:02:55]} 17. Qd5 {[%emt 0:00:13]} Qf8 {[%emt 0:01:10]} 18. Qxf7+ {[%emt 0:00:08]} Qxf7 {[%emt 0:00:10]} 19. Re8+ {[%emt 0:00:05]} Kh7 {[%emt 0:00:02]} 20. Bxf7 {[%emt 0:00:07]} Bxb2 {[%emt 0:00:30]} 21. Rfe1 {[%emt 0:01:44]} b6 {[%emt 0:03:11]} 22. h4 {[%emt 0:01:42]} h5 {[%emt 0:03:16]} 23. Bxh5 {[%emt 0:01:56]} Bb7 {[%emt 0:00:06]} 24. Rxa8 {[%emt 0:01:02]} Bxa8 {[%emt 0:00:04]} 25. Bf3 {[%emt 0:00:12]} Bxf3 {[%emt 0:00:05]} 26. gxf3 {[%emt 0:00:12]} Bf6 {[%emt 0:00:22]} 27. Kg2 {[%emt 0:01:31]} Kg6 {[%emt 0:01:02]} 28. Kg3 {[%emt 0:00:21]} Kf5 {[%emt 0:00:43]} 29. Re8 {[%emt 0:00:15]} d5 {[%emt 0:00:35]} 30. f4 {[%emt 0:01:03]} a5 {[%emt 0:00:41]} 31. Rc8 {[%emt 0:00:26]} Ke6 {[%emt 0:00:18]} 32. Rxc7 {[%emt 0:00:25]} g5 {[%emt 0:01:44]} 33. hxg5 {[%emt 0:00:08]} 1-0

[Event "28th Bosnjaci Open 2024"]
[Site "Bosnjaci"]
[Date "2024.01.05"]
[Round "4.11"]
[White "Konjevic, Nikola"]
[Black "Cvitan, Ena"]
[Result "0-1"]
[ECO "B12"]
[WhiteElo "2035"]
[BlackElo "2242"]
[Annotator "RC"]
[PlyCount "94"]
[EventDate "2024.01.02"]
[EventType "swiss"]
[EventCountry "CRO"]
[SourceTitle "playchess.com"]
[Source "ChessBase"]
[SourceQuality "1"]
[TimeControl "5400+30"]

1. e4 {[%emt 0:00:04]} c6 {[%emt 0:04:23]} 2. d4 {[%emt 0:00:14]} d5 {[%emt 0:00:05]} 3. e5 {[%emt 0:00:27]} Bf5 {[%emt 0:00:08]} 4. h4 {[%emt 0:00:36]} Qb6 {[%emt 0:01:31]} 5. g4 {[%emt 0:08:52]} Bd7 {[%emt 0:02:18]} 6. Be3 {[%emt 0:11:12]} Qxb2 {[%emt 0:13:41]} 7. Nd2 {[%emt 0:00:08]} Qa3 {[%emt 0:04:54]} 8. Rb1 {[%emt 0:09:54]} b5 {[%emt 0:01:23]} 9. Nb3 {[%emt 0:01:05]} e6 {[%emt 0:03:11]} 10. Bd3 {[%emt 0:08:38]} Ne7 {[%emt 0:03:47]} 11. Ne2 {[%emt 0:08:04]} Nc8 {[%emt 0:00:21]} 12. Bc1 {[%emt 0:02:46]} Qa6 {[%emt 0:04:23]} 13. a4 {[%emt 0:01:03]} Nb6 {[%emt 0:01:30]} 14. a5 {[%emt 0:05:52]} Nc4 {[%emt 0:02:10]} 15. O-O {[%emt 0:03:43]} Qc8 {[%emt 0:07:41]} 16. Bxc4 {[%emt 0:02:22]} bxc4 {[%emt 0:01:06]} 17. Nc5 {[%emt 0:00:07]} Na6 {[%emt 0:05:10]} 18. Be3 {[%emt 0:04:06]} Nxc5 {[%emt 0:05:24]} 19. dxc5 {[%emt 0:00:06]} Be7 {[%emt 0:03:02]} 20. Kg2 {[%emt 0:06:55]} O-O {[%emt 0:03:41]} 21. Qd4 {[%emt 0:05:24]} f6 {[%emt 0:02:33]} 22. f4 {[%emt 0:00:18]} Qc7 {[%emt 0:04:37]} 23. Nc3 {[%emt 0:07:05]} fxe5 {[%emt 0:01:27]} 24. fxe5 {[%emt 0:00:46]} Rxf1 {[%emt 0:00:23]} 25. Rxf1 {[%emt 0:03:17]} Rf8 {[%emt 0:01:32]} 26. Rxf8+ {[%emt 0:01:53]} Bxf8 {[%emt 0:00:13]} 27. Bd2 {[%emt 0:00:11]} Qxa5 {[%emt 0:03:55]} 28. Nxd5 {[%emt 0:01:27]} Qxc5 {[%emt 0:00:41]} 29. Qxc5 {[%emt 0:00:53]} Bxc5 {[%emt 0:00:06]} 30. Be3 {[%emt 0:02:51]} Ba3 {[%emt 0:02:31]} 31. Nc3 {[%emt 0:00:36]} c5 {[%emt 0:03:02]} 32. Nb1 {[%emt 0:00:41]} Bb2 {[%emt 0:01:52]} 33. Bxc5 {[%emt 0:00:53]} a5 {[%emt 0:01:04]} 34. c3 {[%emt 0:01:11]} Bc6+ {[%emt 0:00:51]} 35. Kf2 {[%emt 0:00:31]} Be4 {[%emt 0:01:55]} 36. Ba3 {[%emt 0:02:38]} Ba1 {[%emt 0:01:05]} 37. Nd2 {[%emt 0:00:44]} Bd3 {[%emt 0:00:08]} 38. Nf3 {[%emt 0:00:56]} Bxc3 {[%emt 0:00:42]} 39. Ke3 {[%emt 0:00:37]} Bb4 {[%emt 0:02:23]} 40. Bb2 {[%emt 0:00:53]} h6 {[%emt 0:02:45]} 41. Kd4 {[%emt 0:00:28]} Be2 {[%emt 0:00:35]} 42. Ng1 {[%emt 0:00:24]} c3 {[%emt 0:01:13]} 43. Bxc3 {[%emt 0:00:20]} Bxc3+ {[%emt 0:00:06]} 44. Kxc3 {[%emt 0:00:04]} Bxg4 {[%emt 0:00:05]} 45. Kb3 {[%emt 0:01:09]} Kf7 {[%emt 0:00:11]} 46. h5 {[%emt 0:00:14]} g6 {[%emt 0:00:09]} 47. hxg6+ {[%emt 0:00:07]} Kxg6 {[%emt 0:00:05]} 0-1

[Event "28th Bosnjaci Open 2024"]
[Site "Bosnjaci"]
[Date "2024.01.05"]
[Round "4.12"]
[White "Vadher, Devaj M"]
[Black "Rosic, Slavko S"]
[Result "0-1"]
[ECO "C01"]
[WhiteElo "1587"]
[BlackElo "2231"]
[Annotator "RC"]
[PlyCount "52"]
[EventDate "2024.01.02"]
[EventType "swiss"]
[EventCountry "CRO"]
[SourceTitle "playchess.com"]
[Source "ChessBase"]
[SourceQuality "1"]
[TimeControl "5400+30"]

1. e4 {[%emt 0:00:03]} e6 {[%emt 0:00:13]} 2. d4 {[%emt 0:00:06]} d5 {[%emt 0:00:04]} 3. exd5 {[%emt 0:00:07]} exd5 {[%emt 0:00:05]} 4. Bd3 {[%emt 0:00:08]} Nc6 {[%emt 0:02:20]} 5. Ne2 {[%emt 0:01:42]} Nb4 {[%emt 0:04:02]} 6. Bb5+ {[%emt 0:05:21]} Bd7 {[%emt 0:00:59]} 7. Bxd7+ {[%emt 0:01:44]} Qxd7 {[%emt 0:00:15]} 8. a3 {[%emt 0:02:35]} Nc6 {[%emt 0:01:13]} 9. Nbc3 {[%emt 0:02:28]} h6 {[%emt 0:05:01]} 10. Qd3 {[%emt 0:03:55]} Nf6 {[%emt 0:01:30]} 11. Bf4 {[%emt 0:03:37]} Bd6 {[%emt 0:02:03]} 12. O-O-O {[%emt 0:03:31]} O-O-O {[%emt 0:01:13]} 13. Bxd6 {[%emt 0:04:28]} Qxd6 {[%emt 0:00:16]} 14. Ng3 {[%emt 0:03:48]} g6 {[%emt 0:01:39]} 15. f3 {[%emt 0:01:16]} Na5 {[%emt 0:01:49]} 16. Nb5 {[%emt 0:04:51]} Qa6 {[%emt 0:09:31]} 17. b3 {[%emt 0:04:52]} Rhe8 {[%emt 0:03:10]} 18. Nc3 {[%emt 0:03:57]} Nc4 {[%emt 0:06:56]} 19. bxc4 {[%emt 0:04:47]} dxc4 {[%emt 0:00:05]} 20. Qd2 {[%emt 0:01:28]} Qxa3+ {[%emt 0:00:09]} 21. Kb1 {[%emt 0:00:31]} Re6 {[%emt 0:01:16]} 22. Na2 {[%emt 0:04:08]} Rb6+ {[%emt 0:00:09]} 23. Nb4 {[%emt 0:03:52]} Rxb4+ {[%emt 0:01:00]} 24. Qxb4 {[%emt 0:00:29]} Qxb4+ {[%emt 0:00:01]} 25. Ka2 {[%emt 0:00:21]} Rd6 {[%emt 0:00:03]} 26. d5 {[%emt 0:00:17]} Ra6# {[%emt 0:00:08]} 0-1

[Event "28th Bosnjaci Open 2024"]
[Site "Bosnjaci"]
[Date "2024.01.05"]
[Round "4.13"]
[White "Tomas, Ante"]
[Black "Jocev, Milan"]
[Result "1/2-1/2"]
[ECO "D14"]
[WhiteElo "2014"]
[BlackElo "2376"]
[Annotator "RC"]
[PlyCount "51"]
[EventDate "2024.01.02"]
[EventType "swiss"]
[EventCountry "CRO"]
[SourceTitle "playchess.com"]
[Source "ChessBase"]
[SourceQuality "1"]
[TimeControl "5400+30"]

1. d4 {[%emt 0:00:03]} d5 {[%emt 0:00:08]} 2. c4 {[%emt 0:00:11]} c6 {[%emt 0:00:13]} 3. cxd5 {[%emt 0:00:14]} cxd5 {[%emt 0:00:07]} 4. Nc3 {[%emt 0:00:07]} Nf6 {[%emt 0:00:07]} 5. Bf4 {[%emt 0:01:03]} Nc6 {[%emt 0:00:28]} 6. e3 {[%emt 0:00:11]} Bf5 {[%emt 0:00:30]} 7. Nf3 {[%emt 0:00:25]} e6 {[%emt 0:01:51]} 8. Qb3 {[%emt 0:00:21]} Bb4 {[%emt 0:00:38]} 9. Ne5 {[%emt 0:02:23]} Bxc3+ {[%emt 0:03:19]} 10. bxc3 {[%emt 0:02:01]} Nxe5 {[%emt 0:00:07]} 11. Bxe5 {[%emt 0:00:53]} O-O {[%emt 0:01:07]} 12. Qxb7 {[%emt 0:09:36]} Ne4 {[%emt 0:00:49]} 13. Ba6 {[%emt 0:07:59]} f6 {[%emt 0:06:19]} 14. Bc7 {[%emt 0:01:51]} Qe8 {[%emt 0:14:20]} 15. O-O {[%emt 0:17:35]} Rf7 {[%emt 0:08:19]} 16. Rfb1 {[%emt 0:08:52]} Nd6 {[%emt 0:09:45]} 17. Qxa8 {[%emt 0:02:59]} Qxa8 {[%emt 0:00:26]} 18. Rb8+ {[%emt 0:00:06]} Qxb8 {[%emt 0:00:15]} 19. Bxb8 {[%emt 0:00:02]} Rd7 {[%emt 0:00:06]} 20. f3 {[%emt 0:04:50]} Bg6 {[%emt 0:08:08]} 21. Kf2 {[%emt 0:06:49]} Rd8 {[%emt 0:02:59]} 22. Bc7 {[%emt 0:01:21]} Rd7 {[%emt 0:00:05]} 23. Ba5 {[%emt 0:02:34]} Nc4 {[%emt 0:00:27]} 24. Bb4 {[%emt 0:06:32]} Rc7 {[%emt 0:01:38]} 25. Bc5 {[%emt 0:05:02]} Nb2 {[%emt 0:01:16]} 26. a4 {[%emt 0:05:55]} 1/2-1/2

[Event "28th Bosnjaci Open 2024"]
[Site "Bosnjaci"]
[Date "2024.01.05"]
[Round "4.14"]
[White "Zlatarevic, Ivan"]
[Black "Cupic, Lovro"]
[Result "0-1"]
[ECO "D08"]
[WhiteElo "2012"]
[BlackElo "2265"]
[Annotator "RC"]
[PlyCount "80"]
[EventDate "2024.01.02"]
[EventType "swiss"]
[EventCountry "CRO"]
[SourceTitle "playchess.com"]
[Source "ChessBase"]
[SourceQuality "1"]
[TimeControl "5400+30"]

1. d4 {[%emt 0:00:12]} d5 {[%emt 0:00:08]} 2. c4 {[%emt 0:00:14]} e5 {[%emt 0:00:06]} 3. dxe5 {[%emt 0:03:23]} d4 {[%emt 0:00:10]} 4. Nf3 {[%emt 0:00:52]} Nc6 {[%emt 0:00:09]} 5. a3 {[%emt 0:01:46]} Nge7 {[%emt 0:00:15]} 6. Nbd2 {[%emt 0:02:36]} Nf5 {[%emt 0:15:21]} 7. b4 {[%emt 0:11:42]} Qe7 {[%emt 0:08:20]} 8. g3 {[%emt 0:10:52]} a5 {[%emt 0:06:37]} 9. b5 {[%emt 0:06:15]} Nxe5 {[%emt 0:00:10]} 10. Nxe5 {[%emt 0:02:37]} Qxe5 {[%emt 0:00:08]} 11. Bb2 {[%emt 0:10:31]} Bc5 {[%emt 0:00:41]} 12. Bg2 {[%emt 0:02:02]} O-O {[%emt 0:02:40]} 13. O-O {[%emt 0:00:55]} Re8 {[%emt 0:03:00]} 14. Re1 {[%emt 0:06:14]} Qe7 {[%emt 0:09:34]} 15. Nb3 {[%emt 0:05:48]} Rd8 {[%emt 0:00:38]} 16. Nxc5 {[%emt 0:03:41]} Qxc5 {[%emt 0:00:09]} 17. Qd3 {[%emt 0:03:28]} Be6 {[%emt 0:02:40]} 18. Bxb7 {[%emt 0:01:27]} Rab8 {[%emt 0:05:21]} 19. Bc6 {[%emt 0:08:01]} Bxc4 {[%emt 0:01:04]} 20. Rac1 {[%emt 0:01:28]} Qxc6 {[%emt 0:00:09]} 21. Qxc4 {[%emt 0:00:40]} Qxb5 {[%emt 0:04:40]} 22. Ba1 {[%emt 0:01:00]} Rd7 {[%emt 0:01:21]} 23. Qc2 {[%emt 0:01:19]} Re8 {[%emt 0:06:07]} 24. Rb1 {[%emt 0:01:27]} Qd5 {[%emt 0:01:35]} 25. Red1 {[%emt 0:02:08]} h5 {[%emt 0:00:55]} 26. a4 {[%emt 0:01:21]} c6 {[%emt 0:01:21]} 27. Rb6 {[%emt 0:03:08]} Rd6 {[%emt 0:00:30]} 28. e3 {[%emt 0:01:30]} Nh4 {[%emt 0:16:26]} 29. gxh4 {[%emt 0:01:51]} d3 {[%emt 0:00:17]} 30. Qxd3 {[%emt 0:02:16]} Qxd3 {[%emt 0:00:14]} 31. Rxd3 {[%emt 0:00:03]} Rxd3 {[%emt 0:00:04]} 32. Kg2 {[%emt 0:01:21]} Ra3 {[%emt 0:01:46]} 33. Bb2 {[%emt 0:01:10]} Rxa4 {[%emt 0:00:31]} 34. Rxc6 {[%emt 0:00:16]} Ra8 {[%emt 0:00:13]} 35. Kg3 {[%emt 0:01:14]} Ra2 {[%emt 0:00:12]} 36. Bd4 {[%emt 0:00:27]} a4 {[%emt 0:00:09]} 37. Rc5 {[%emt 0:00:15]} a3 {[%emt 0:00:30]} 38. Rc1 {[%emt 0:02:55]} Rd2 {[%emt 0:00:26]} 39. Kf3 {[%emt 0:00:56]} a2 {[%emt 0:00:11]} 40. Ra1 {[%emt 0:00:20]} Rb8 {[%emt 0:00:14]} 0-1